Workbook

Sheet Движ ТМЦ-ЕСТЬ
A1: Нименование | B1: 2016-09-01 | C1: приход | D1: расход | E1: =B1+1 -> 2016-09-02 | F1: приход | G1: расход | H1: =E1+1 -> 2016-09-03 | I1: приход | J1: расход | K1: =H1+1 -> 2016-09-04 | L1: приход | M1: расход | N1: =K1+1 -> 2016-09-05 | O1: приход | P1: расход | Q1: =N1+1 -> 2016-09-06 | R1: приход | S1: расход | T1: =Q1+1 -> 2016-09-07 | U1: приход | V1: расход | W1: =T1+1 -> 2016-09-08 | X1: приход | Y1: расход | Z1: =W1+1 -> 2016-09-09 | AA1: приход | AB1: расход | AC1: =Z1+1 -> 2016-09-10 | AD1: приход | AE1: расход | AF1: =AC1+1 -> 2016-09-11 | AG1: приход | AH1: расход | AI1: =AF1+1 -> 2016-09-12 | AJ1: приход | AK1: расход | AL1: =AI1+1 -> 2016-09-13 | AM1: приход | AN1: расход | AO1: =AL1+1 -> 2016-09-14 | AP1: приход | AQ1: расход | AR1: =AO1+1 -> 2016-09-15 | AS1: приход | AT1: расход | AU1: =AR1+1 -> 2016-09-16 | AV1: приход | AW1: расход | AX1: =AU1+1 -> 2016-09-17 | AY1: приход | AZ1: расход | BA1: =AX1+1 -> 2016-09-18 | BB1: приход | BC1: расход | BD1: =BA1+1 -> 2016-09-19 | BE1: приход | BF1: расход | BG1: =BD1+1 -> 2016-09-20 | BH1: приход | BI1: расход | BJ1: =BG1+1 -> 2016-09-21 | BK1: приход | BL1: расход | BM1: =BJ1+1 -> 2016-09-22 | BN1: приход | BO1: расход | BP1: =BM1+1 -> 2016-09-23 | BQ1: приход | BR1: расход | BS1: =BP1+1 -> 2016-09-24 | BT1: приход | BU1: расход | BV1: =BS1+1 -> 2016-09-25 | BW1: приход | BX1: расход | BY1: =BV1+1 -> 2016-09-26 | BZ1: приход | CA1: расход | CB1: =BY1+1 -> 2016-09-27 | CC1: приход | CD1: расход | CE1: =CB1+1 -> 2016-09-28 | CF1: приход | CG1: расход | CH1: =CE1+1 -> 2016-09-29 | CI1: приход | CJ1: расход | CK1: =CH1+1 -> 2016-09-30 | CL1: приход | CM1: расход | CN1: =CK1+1 -> 2016-10-01 | CO1: приход | CP1: расход
A2: ПЭНД 2НТ76-17 (1820) | B2: 475 | E2: =B2+C2-D2 -> 475 | H2: =E2+F2-G2 -> 475 | K2: =H2+I2-J2 -> 475 | N2: =K2+L2-M2 -> 475 | Q2: =N2+O2-P2 -> 475 | S2: 150 | T2: =Q2+R2-S2 -> 325 | W2: =T2+U2-V2 -> 325 | Y2: 150 | Z2: =W2+X2-Y2 -> 175 | AB2: 175 | AC2: =Z2+AA2-AB2 -> 0 | AF2: =AC2+AD2-AE2 -> 0 | AI2: =AF2+AG2-AH2 -> 0 | AL2: =AI2+AJ2-AK2 -> 0 | AM2: =1250+1250 -> 2500 | AO2: =AL2+AM2-AN2 -> 2500 | AQ2: 150 | AR2: =AO2+AP2-AQ2 -> 2350 | AT2: 100 | AU2: =AR2+AS2-AT2 -> 2250 | AX2: =AU2+AV2-AW2 -> 2250 | BA2: =AX2+AY2-AZ2 -> 2250 | BD2: =BA2+BB2-BC2 -> 2250 | BF2: 150 | BG2: =BD2+BE2-BF2 -> 2100 | BI2: 250 | BJ2: =BG2+BH2-BI2 -> 1850 | BM2: =BJ2+BK2-BL2 -> 1850 | BP2: =BM2+BN2-BO2 -> 1850 | BR2: 250 | BS2: =BP2+BQ2-BR2 -> 1600 | BV2: =BS2+BT2-BU2 -> 1600 | BY2: =BV2+BW2-BX2 -> 1600 | CB2: =BY2+BZ2-CA2 -> 1600 | CD2: 100 | CE2: =CB2+CC2-CD2 -> 1500 | CH2: =CE2+CF2-CG2 -> 1500 | CJ2: 100 | CK2: =CH2+CI2-CJ2 -> 1400 | CM2: 150 | CN2: =CK2+CL2-CM2 -> 1250 | CO2: =SUMIF(B$1:CN$1,"приход",B2:CN2) -> 2500 | CP2: =SUMIF(B$1:CN$1,"расход",B2:CN2) -> 1725
A3: ПЭНД 2НТ76-17 (желтый)сырье | B3: 0 | E3: 0 | H3: 0 | K3: 0 | N3: 0 | Q3: 0 | T3: 0 | U3: 20 | W3: 20 | Z3: 20 | AC3: 20 | AF3: 20 | AI3: 20 | AL3: 20 | AO3: 20 | AR3: 20 | AU3: 20 | AX3: 20 | BA3: 20 | BD3: 20 | BG3: 20 | BJ3: 20 | BM3: 20 | BP3: 20 | BS3: 20 | BV3: 20 | BY3: 20 | CB3: 20 | CE3: 20 | CH3: 20 | CK3: 20 | CN3: 20 | CO3: =SUMIF(B$1:CN$1,"приход",B3:CN3) -> 20 | CP3: =SUMIF(B$1:CN$1,"расход",B3:CN3) -> 0
A4: ПЭНД 273-83 (2094) | B4: 2500 | E4: 2500 | G4: 200 | H4: 2300 | K4: 2300 | N4: 2300 | P4: =200+200 -> 400 | Q4: 1900 | T4: 1900 | V4: 650 | W4: 1250 | Y4: 300 | Z4: 950 | AB4: 950 | AC4: 0 | AF4: 0 | AI4: 0 | AL4: 0 | AO4: 0 | AR4: 0 | AU4: 0 | AX4: 0 | BA4: 0 | BD4: 0 | BG4: 0 | BJ4: 0 | BM4: 0 | BP4: 0 | BS4: 0 | BV4: 0 | BY4: 0 | CB4: 0 | CE4: 0 | CH4: 0 | CK4: 0 | CN4: 0 | CO4: =SUMIF(B$1:CN$1,"приход",B4:CN4) -> 0 | CP4: =SUMIF(B$1:CN$1,"расход",B4:CN4) -> 2500
A5: ПЭНД 273-83 (3348) | B5: 0 | C5: 20000 | E5: 20000 | H5: 20000 | K5: 20000 | N5: 20000 | Q5: 20000 | T5: 20000 | W5: 20000 | Z5: 20000 | AC5: 20000 | AF5: 20000 | AI5: 20000 | AL5: 20000 | AN5: 1250 | AO5: 18750 | AR5: 18750 | AT5: 1250 | AU5: 17500 | AX5: 17500 | BA5: 17500 | BD5: 17500 | BG5: 17500 | BJ5: 17500 | BL5: 1250 | BM5: 16250 | BP5: 16250 | BS5: 16250 | BV5: 16250 | BY5: 16250 | CA5: 1250 | CB5: 15000 | CE5: 15000 | CH5: 15000 | CJ5: 1250 | CK5: 13750 | CN5: 13750 | CO5: =SUMIF(B$1:CN$1,"приход",B5:CN5) -> 20000 | CP5: =SUMIF(B$1:CN$1,"расход",B5:CN5) -> 6250
A6: ПЭНД 273-83 (3433) | B6: 0 | E6: 0 | H6: 0 | K6: 0 | N6: 0 | Q6: 0 | R6: 18750 | T6: 18750 | W6: 18750 | Z6: 18750 | AC6: 18750 | AF6: 18750 | AI6: 18750 | AL6: 18750 | AO6: 18750 | AR6: 18750 | AU6: 18750 | AX6: 18750 | BA6: 18750 | BD6: 18750 | BG6: 18750 | BJ6: 18750 | BM6: 18750 | BP6: 18750 | BS6: 18750 | BV6: 18750 | BY6: 18750 | CB6: 18750 | CE6: 18750 | CH6: 18750 | CK6: 18750 | CN6: 18750 | CO6: =SUMIF(B$1:CN$1,"приход",B6:CN6) -> 18750 | CP6: =SUMIF(B$1:CN$1,"расход",B6:CN6) -> 0
A7: ПЭНД 273-83 (3489) | B7: 0 | E7: 0 | H7: 0 | K7: 0 | N7: 0 | Q7: 0 | T7: 0 | W7: 0 | Z7: 0 | AA7: 20000 | AC7: 20000 | AF7: 20000 | AI7: 20000 | AL7: 20000 | AO7: 20000 | AR7: 20000 | AU7: 20000 | AX7: 20000 | BA7: 20000 | BD7: 20000 | BG7: 20000 | BJ7: 20000 | BM7: 20000 | BP7: 20000 | BS7: 20000 | BV7: 20000 | BY7: 20000 | CB7: 20000 | CE7: 20000 | CH7: 20000 | CK7: 20000 | CN7: 20000 | CO7: =SUMIF(B$1:CN$1,"приход",B7:CN7) -> 20000 | CP7: =SUMIF(B$1:CN$1,"расход",B7:CN7) -> 0
A8: Баско черный ПФ1901/07 ПЭ | B8: 75 | E8: 75 | H8: 75 | K8: 75 | N8: 75 | P8: 25 | Q8: 50 | T8: 50 | W8: 50 | X8: 42 | Y8: 17 | Z8: 75 | AC8: 75 | AF8: 75 | AI8: 75 | AL8: 75 | AO8: 75 | AR8: 75 | AU8: 75 | AX8: 75 | BA8: 75 | BD8: 75 | BG8: 75 | BJ8: 75 | BM8: 75 | BO8: 25 | BP8: 50 | BS8: 50 | BV8: 50 | BY8: 50 | CB8: 50 | CE8: 50 | CH8: 50 | CK8: 50 | CN8: 50 | CO8: =SUMIF(B$1:CN$1,"приход",B8:CN8) -> 42 | CP8: =SUMIF(B$1:CN$1,"расход",B8:CN8) -> 67
A9: Баско ярко-красный П1105/02 ПЭ | B9: 25 | E9: 25 | H9: 25 | K9: 25 | N9: 25 | Q9: 25 | T9: 25 | W9: 25 | Z9: 25 | AC9: 25 | AF9: 25 | AI9: 25 | AL9: 25 | AO9: 25 | AR9: 25 | AU9: 25 | AX9: 25 | BA9: 25 | BD9: 25 | BG9: 25 | BJ9: 25 | BM9: 25 | BP9: 25 | BS9: 25 | BV9: 25 | BY9: 25 | CB9: 25 | CE9: 25 | CH9: 25 | CK9: 25 | CN9: 25 | CO9: =SUMIF(B$1:CN$1,"приход",B9:CN9) -> 0 | CP9: =SUMIF(B$1:CN$1,"расход",B9:CN9) -> 0
A10: Баско желтный ПФ 1305/01 ПЭ (1281 - 16/июль) | B10: 0 | E10: 0 | H10: 0 | K10: 0 | N10: 0 | Q10: 0 | T10: 0 | W10: 0 | Z10: 0 | AA10: 20 | AC10: 20 | AF10: 20 | AI10: 20 | AL10: 20 | AO10: 20 | AR10: 20 | AU10: 20 | AX10: 20 | BA10: 20 | BD10: 20 | BG10: 20 | BI10: 20 | BJ10: 0 | BM10: 0 | BN10: 16 | BP10: 16 | BS10: 16 | BV10: 16 | BY10: 16 | CB10: 16 | CE10: 16 | CH10: 16 | CK10: 16 | CN10: 16 | CO10: =SUMIF(B$1:CN$1,"приход",B10:CN10) -> 36 | CP10: =SUMIF(B$1:CN$1,"расход",B10:CN10) -> 20
A11: Краситель МЕ 96412 TOSAF | B11: 0 | E11: 0 | H11: 0 | K11: 0 | N11: 0 | Q11: 0 | T11: 0 | W11: 0 | Z11: 0 | AC11: 0 | AF11: 0 | AI11: 0 | AL11: 0 | AO11: 0 | AR11: 0 | AU11: 0 | AX11: 0 | BA11: 0 | BD11: 0 | BG11: 0 | BJ11: 0 | BM11: 0 | BP11: 0 | BS11: 0 | BV11: 0 | BY11: 0 | BZ11: 1.815 | CB11: 1.815 | CE11: 1.815 | CH11: 1.815 | CK11: 1.815 | CN11: 1.815 | CO11: =SUMIF(B$1:CN$1,"приход",B11:CN11) -> 1.815 | CP11: =SUMIF(B$1:CN$1,"расход",B11:CN11) -> 0
A12: Краситель МЕ 95510 TOSAF | B12: 0 | E12: 0 | H12: 0 | K12: 0 | N12: 0 | Q12: 0 | T12: 0 | W12: 0 | Z12: 0 | AC12: 0 | AF12: 0 | AI12: 0 | AL12: 0 | AO12: 0 | AR12: 0 | AU12: 0 | AX12: 0 | BA12: 0 | BD12: 0 | BG12: 0 | BJ12: 0 | BM12: 0 | BP12: 0 | BS12: 0 | BV12: 0 | BY12: 0 | BZ12: 1.651 | CB12: 1.651 | CE12: 1.651 | CH12: 1.651 | CK12: 1.651 | CN12: 1.651 | CO12: =SUMIF(B$1:CN$1,"приход",B12:CN12) -> 1.651 | CP12: =SUMIF(B$1:CN$1,"расход",B12:CN12) -> 0
A13: Краситель МЕ 31514 TOSAF | B13: 0 | E13: 0 | H13: 0 | K13: 0 | N13: 0 | Q13: 0 | T13: 0 | W13: 0 | Z13: 0 | AC13: 0 | AF13: 0 | AI13: 0 | AL13: 0 | AO13: 0 | AR13: 0 | AU13: 0 | AX13: 0 | BA13: 0 | BD13: 0 | BG13: 0 | BJ13: 0 | BM13: 0 | BP13: 0 | BS13: 0 | BV13: 0 | BY13: 0 | BZ13: 2.43 | CB13: 2.43 | CE13: 2.43 | CH13: 2.43 | CK13: 2.43 | CN13: 2.43 | CO13: =SUMIF(B$1:CN$1,"приход",B13:CN13) -> 2.43 | CP13: =SUMIF(B$1:CN$1,"расход",B13:CN13) -> 0
A14: Краситель МЕ 32161 TOSAF | B14: 0 | E14: 0 | H14: 0 | K14: 0 | N14: 0 | Q14: 0 | T14: 0 | W14: 0 | Z14: 0 | AC14: 0 | AF14: 0 | AI14: 0 | AL14: 0 | AO14: 0 | AR14: 0 | AU14: 0 | AX14: 0 | BA14: 0 | BD14: 0 | BG14: 0 | BJ14: 0 | BM14: 0 | BP14: 0 | BS14: 0 | BV14: 0 | BY14: 0 | BZ14: 1.565 | CB14: 1.565 | CE14: 1.565 | CH14: 1.565 | CK14: 1.565 | CN14: 1.565 | CO14: =SUMIF(B$1:CN$1,"приход",B14:CN14) -> 1.565 | CP14: =SUMIF(B$1:CN$1,"расход",B14:CN14) -> 0
A15: Суперконцентрат ST2067 (ANTISTATIC MB) | B15: 75 | E15: 75 | H15: 75 | K15: 75 | N15: 75 | Q15: 75 | T15: 75 | W15: 75 | Z15: 75 | AC15: 75 | AF15: 75 | AI15: 75 | AL15: 75 | AO15: 75 | AR15: 75 | AU15: 75 | AX15: 75 | BA15: 75 | BD15: 75 | BG15: 75 | BJ15: 75 | BM15: 75 | BP15: 75 | BS15: 75 | BV15: 75 | BY15: 75 | CB15: 75 | CE15: 75 | CH15: 75 | CK15: 75 | CN15: 75 | CO15: =SUMIF(B$1:CN$1,"приход",B15:CN15) -> 0 | CP15: =SUMIF(B$1:CN$1,"расход",B15:CN15) -> 0
A16: Суперконцентрат МЕ 41862(красный) | B16: 125 | E16: 125 | H16: 125 | K16: 125 | N16: 125 | Q16: 125 | T16: 125 | W16: 125 | Y16: 25 | Z16: 100 | AC16: 100 | AF16: 100 | AI16: 100 | AL16: 100 | AN16: 25 | AO16: 75 | AR16: 75 | AS16: 21 | AU16: 96 | AV16: 23 | AX16: 119 | BA16: 119 | BD16: 119 | BG16: 119 | BJ16: 119 | BM16: 119 | BP16: 119 | BS16: 119 | BV16: 119 | BY16: 119 | CB16: 119 | CE16: 119 | CH16: 119 | CK16: 119 | CN16: 119 | CO16: =SUMIF(B$1:CN$1,"приход",B16:CN16) -> 44 | CP16: =SUMIF(B$1:CN$1,"расход",B16:CN16) -> 50
A17: Суперконцентрат МЕ 44444А(красный) | B17: 145 | E17: 145 | H17: 145 | K17: 145 | N17: 145 | Q17: 145 | T17: 145 | W17: 145 | Z17: 145 | AC17: 145 | AF17: 145 | AI17: 145 | AL17: 145 | AO17: 145 | AR17: 145 | AU17: 145 | AX17: 145 | BA17: 145 | BD17: 145 | BG17: 145 | BJ17: 145 | BM17: 145 | BP17: 145 | BS17: 145 | BV17: 145 | BY17: 145 | CA17: 13 | CB17: 132 | CD17: 25 | CE17: 107 | CH17: 107 | CJ17: 25 | CK17: 82 | CN17: 82 | CO17: =SUMIF(B$1:CN$1,"приход",B17:CN17) -> 0 | CP17: =SUMIF(B$1:CN$1,"расход",B17:CN17) -> 63
A18: Суперконцентрат МЕ 52420(зеленый) | B18: 0 | E18: 0 | H18: 0 | K18: 0 | N18: 0 | Q18: 0 | T18: 0 | W18: 0 | Z18: 0 | AA18: 50 | AC18: 50 | AF18: 50 | AI18: 50 | AL18: 50 | AO18: 50 | AQ18: 25 | AR18: 25 | AU18: 25 | AX18: 25 | BA18: 25 | BD18: 25 | BG18: 25 | BJ18: 25 | BM18: 25 | BN18: 8 | BP18: 33 | BR18: 8 | BS18: 25 | BV18: 25 | BY18: 25 | CB18: 25 | CE18: 25 | CF18: 4 | CH18: 29 | CK18: 29 | CN18: 29 | CO18: =SUMIF(B$1:CN$1,"приход",B18:CN18) -> 62 | CP18: =SUMIF(B$1:CN$1,"расход",B18:CN18) -> 33
A19: Суперконцентрат EI9251А (черный) | B19: 0 | E19: 0 | H19: 0 | K19: 0 | N19: 0 | Q19: 0 | T19: 0 | W19: 0 | Z19: 0 | AC19: 0 | AF19: 0 | AI19: 0 | AJ19: 72 | AK19: 8 | AL19: 64 | AO19: 64 | AR19: 64 | AU19: 64 | AX19: 64 | BA19: 64 | BD19: 64 | BG19: 64 | BJ19: 64 | BM19: 64 | BP19: 64 | BS19: 64 | BV19: 64 | BY19: 64 | CB19: 64 | CE19: 64 | CH19: 64 | CK19: 64 | CN19: 64 | CO19: =SUMIF(B$1:CN$1,"приход",B19:CN19) -> 72 | CP19: =SUMIF(B$1:CN$1,"расход",B19:CN19) -> 8
A20: Суперконцентрат МЕ95510 (серебро) | B20: 0 | E20: 0 | H20: 0 | K20: 0 | N20: 0 | Q20: 0 | T20: 0 | W20: 0 | Z20: 0 | AC20: 0 | AF20: 0 | AI20: 0 | AL20: 0 | AO20: 0 | AR20: 0 | AU20: 0 | AX20: 0 | BA20: 0 | BD20: 0 | BG20: 0 | BJ20: 0 | BM20: 0 | BP20: 0 | BS20: 0 | BV20: 0 | BY20: 0 | CB20: 0 | CC20: 25 | CE20: 25 | CH20: 25 | CK20: 25 | CN20: 25 | CO20: =SUMIF(B$1:CN$1,"приход",B20:CN20) -> 25 | CP20: =SUMIF(B$1:CN$1,"расход",B20:CN20) -> 0

Sheet НАДО
A1: Наименование ТМЦ | B1: Операция | C1: Дата | D1: Количество
A2: ПЭНД 2НТ76-17 (1820) | B2: Расход | C2: 2016-09-06 | D2: 150
A3: ПЭНД 2НТ76-17 (1820) | B3: Расход | C3: 2016-09-08 | D3: 150
A4: ПЭНД 2НТ76-17 (1820) | B4: Расход | C4: 2016-09-09 | D4: 175
A5: ПЭНД 2НТ76-17 (1820) | B5: Приход | C5: 2016-09-13 | D5: 2500
A6: ПЭНД 2НТ76-17 (1820) | B6: Расход | C6: 2016-09-14 | D6: 150
A7: ПЭНД 2НТ76-17 (1820) | B7: Расход | C7: 2016-09-15 | D7: 100
A8: ПЭНД 2НТ76-17 (1820) | B8: Расход | C8: 2016-09-19 | D8: 150
A9: ПЭНД 2НТ76-17 (1820) | B9: Расход | C9: 2016-09-20 | D9: 250
A10: ПЭНД 2НТ76-17 (1820) | B10: Расход | C10: 2016-09-23 | D10: 250
A11: ПЭНД 2НТ76-17 (1820) | B11: Расход | C11: 2016-09-27 | D11: 100
A12: ПЭНД 2НТ76-17 (1820) | B12: Расход | C12: 2016-09-29 | D12: 100
A13: ПЭНД 2НТ76-17 (1820) | B13: Расход | C13: 2016-09-30 | D13: 150
A14: ПЭНД 2НТ76-17 (желтый)сырье | B14: Приход | C14: 2016-09-07 | D14: 20
A15: ПЭНД 273-83 (2094) | B15: Расход | C15: 2016-09-02 | D15: 200
A16: ПЭНД 273-83 (2094) | B16: Расход | C16: 2016-09-05 | D16: 400
A17: ПЭНД 273-83 (2094) | B17: Расход | C17: 2016-09-07 | D17: 650
A18: ПЭНД 273-83 (2094) | B18: Расход | C18: 2016-09-08 | D18: 300
A19: ПЭНД 273-83 (2094) | B19: Расход | C19: 2016-09-09 | D19: 950

Sheet Свод
A3: Названия строк | B3: Сумма по полю Количество
A4: ПЭНД 273-83 (2094) | B4: 2500
A5: Расход | B5: 2500
A6: ПЭНД 2НТ76-17 (1820) | B6: 4225
A7: Приход | B7: 2500
A8: Расход | B8: 1725
A9: ПЭНД 2НТ76-17 (желтый)сырье | B9: 20
A10: Приход | B10: 20
A11: Общий итог | B11: 6745
